[Event "Titled Tuesday Blitz March 22 Early 2022"]
[White "Shuvalova, Polina"]
[Black "Neiksans, Arturs"]
[WhiteFideId "24171760"]
[BlackFideId "11601388"]
[WhiteElo "2355"]
[BlackElo "2447"]
[Result "1-0"]
[Round "11"]
[TimeControl "180+1"]
[Date "2022.03.22"]
[WhiteClock "0:00:31"]
[BlackClock "0:00:27"]

1. d4 {[%clk 0:03:00]}  f5 {[%clk 0:02:59]} 2. g3 {[%clk 0:03:00]}  Nf6 {[%clk 0:02:59]} 3. Bg2 {[%clk 0:03:01]}  d6 {[%clk 0:02:58]} 4. Nd2 {[%clk 0:03:01]}  e5 {[%clk 0:02:57]} 5. c3 {[%clk 0:02:45]}  e4 {[%clk 0:02:52]} 6. Nh3 {[%clk 0:02:43]}  d5 {[%clk 0:02:51]} 7. Nf4 {[%clk 0:02:34]}  g5 {[%clk 0:02:48]} 8. Nh3 {[%clk 0:02:31]}  h6 {[%clk 0:02:48]} 9. Nb3 {[%clk 0:02:25]}  Bd6 {[%clk 0:02:40]} 10. f4 {[%clk 0:02:21]}  g4 {[%clk 0:02:33]} 11. Nf2 {[%clk 0:02:21]}  b6 {[%clk 0:02:32]} 12. Be3 {[%clk 0:02:19]}  a5 {[%clk 0:02:32]} 13. a4 {[%clk 0:02:17]}  Ba6 {[%clk 0:02:31]} 14. Qc2 {[%clk 0:02:08]}  Nc6 {[%clk 0:02:31]} 15. h3 {[%clk 0:02:04]}  Qd7 {[%clk 0:02:16]} 16. Nd2 {[%clk 0:02:01]}  O-O-O {[%clk 0:02:12]} 17. h4 {[%clk 0:02:00]}  Nh5 {[%clk 0:02:11]} 18. Nf1 {[%clk 0:01:58]}  Kb7 {[%clk 0:02:04]} 19. Nd1 {[%clk 0:01:55]}  Rc8 {[%clk 0:02:02]} 20. Kf2 {[%clk 0:01:55]}  Nd8 {[%clk 0:02:02]} 21. b4 {[%clk 0:01:48]}  axb4 {[%clk 0:02:00]} 22. cxb4 {[%clk 0:01:48]}  Bxb4 {[%clk 0:01:59]} 23. Rb1 {[%clk 0:01:41]}  Be7 {[%clk 0:01:43]} 24. a5 {[%clk 0:01:39]}  Ne6 {[%clk 0:01:31]} 25. Qb2 {[%clk 0:01:34]}  Qc6 {[%clk 0:01:23]} 26. Nc3 {[%clk 0:01:27]}  Rb8 {[%clk 0:01:22]} 27. Nd2 {[%clk 0:01:17]}  Kc8 {[%clk 0:01:14]} 28. Rhc1 {[%clk 0:01:16]}  Qd7 {[%clk 0:01:12]} 29. Qa2 {[%clk 0:00:58]}  b5 {[%clk 0:00:46]} 30. Nxd5 {[%clk 0:00:56]}  Kd8 {[%clk 0:00:46]} 31. Nxe7 {[%clk 0:00:49]}  Kxe7 {[%clk 0:00:43]} 32. d5 {[%clk 0:00:50]}  Nd8 {[%clk 0:00:40]} 33. Nxe4 {[%clk 0:00:38]}  fxe4 {[%clk 0:00:39]} 34. Bxe4 {[%clk 0:00:38]}  Nf6 {[%clk 0:00:38]} 35. Bc5+ {[%clk 0:00:38]}  Ke8 {[%clk 0:00:38]} 36. Bg6+ {[%clk 0:00:37]}  Nf7 {[%clk 0:00:38]} 37. Qb2 {[%clk 0:00:33]}  Qd8 {[%clk 0:00:27]} 38. Qe5+ {[%clk 0:00:31]} 1-0


[Site "https://www.chess.com"]

[Event "Titled Tuesday Blitz March 22 Early 2022"]
[White "Silvestre, Christian"]
[Black "Kett, Tim"]
[WhiteFideId "30956269"]
[BlackFideId "1801210"]
[WhiteElo "2426"]
[BlackElo "2098"]
[Result "1-0"]
[Round "11"]
[TimeControl "180+1"]
[Date "2022.03.22"]
[WhiteClock "0:02:09"]
[BlackClock "0:00:23"]

1. Nf3 {[%clk 0:02:58]}  Nf6 {[%clk 0:02:59]} 2. d4 {[%clk 0:02:55]}  g6 {[%clk 0:02:58]} 3. Bg5 {[%clk 0:02:55]}  Bg7 {[%clk 0:02:57]} 4. Nbd2 {[%clk 0:02:54]}  d5 {[%clk 0:02:54]} 5. Bxf6 {[%clk 0:02:53]}  Bxf6 {[%clk 0:02:54]} 6. g3 {[%clk 0:02:53]}  O-O {[%clk 0:02:53]} 7. Bg2 {[%clk 0:02:53]}  c5 {[%clk 0:02:53]} 8. c3 {[%clk 0:02:52]}  b6 {[%clk 0:02:51]} 9. O-O {[%clk 0:02:51]}  Nc6 {[%clk 0:02:51]} 10. e3 {[%clk 0:02:51]}  e5 {[%clk 0:02:49]} 11. dxe5 {[%clk 0:02:50]}  Nxe5 {[%clk 0:02:49]} 12. Nxe5 {[%clk 0:02:51]}  Bxe5 {[%clk 0:02:48]} 13. e4 {[%clk 0:02:47]}  Bb7 {[%clk 0:02:46]} 14. Nf3 {[%clk 0:02:44]}  Bg7 {[%clk 0:02:44]} 15. exd5 {[%clk 0:02:43]}  Qxd5 {[%clk 0:02:41]} 16. Qxd5 {[%clk 0:02:41]}  Bxd5 {[%clk 0:02:41]} 17. Ng5 {[%clk 0:02:41]}  Bxg2 {[%clk 0:02:39]} 18. Kxg2 {[%clk 0:02:42]}  Rad8 {[%clk 0:02:37]} 19. Rad1 {[%clk 0:02:40]}  h6 {[%clk 0:02:31]} 20. Ne4 {[%clk 0:02:39]}  Rfe8 {[%clk 0:02:25]} 21. Kf3 {[%clk 0:02:37]}  f5 {[%clk 0:02:17]} 22. Nd6 {[%clk 0:02:35]}  Re6 {[%clk 0:02:17]} 23. Nc4 {[%clk 0:02:34]}  Rde8 {[%clk 0:02:06]} 24. Rd7 {[%clk 0:02:32]}  R8e7 {[%clk 0:01:58]} 25. Rfd1 {[%clk 0:02:31]}  g5 {[%clk 0:01:50]} 26. h3 {[%clk 0:02:28]}  h5 {[%clk 0:01:46]} 27. Ne3 {[%clk 0:02:26]}  g4+ {[%clk 0:01:37]} 28. Kg2 {[%clk 0:02:25]}  f4 {[%clk 0:01:06]} 29. gxf4 {[%clk 0:02:19]}  gxh3+ {[%clk 0:01:05]} 30. Kxh3 {[%clk 0:02:18]}  Kf7 {[%clk 0:00:26]} 31. Nf5 {[%clk 0:02:11]}  Rxd7 {[%clk 0:00:24]} 32. Rxd7+ {[%clk 0:02:09]}  Kf6 {[%clk 0:00:23]} 33. Nxg7 {[%clk 0:02:09]} 1-0


[Site "https://www.chess.com"]

[Event "Titled Tuesday Blitz March 22 Early 2022"]
[White "Siva Mahadevan"]
[Black "Iskusnyh, Sergei"]
[WhiteFideId "25043153"]
[BlackFideId "4120027"]
[WhiteElo "2203"]
[BlackElo "2492"]
[Result "1-0"]
[Round "11"]
[TimeControl "180+1"]
[Date "2022.03.22"]
[WhiteClock "0:00:05"]
[BlackClock "0:00:13"]

1. e4 {[%clk 0:02:58]}  e6 {[%clk 0:02:59]} 2. d4 {[%clk 0:02:58]}  d5 {[%clk 0:03:00]} 3. Nd2 {[%clk 0:02:59]}  c5 {[%clk 0:02:59]} 4. exd5 {[%clk 0:02:57]}  exd5 {[%clk 0:03:00]} 5. Ngf3 {[%clk 0:02:56]}  Nc6 {[%clk 0:03:00]} 6. Bb5 {[%clk 0:02:56]}  cxd4 {[%clk 0:03:00]} 7. Nxd4 {[%clk 0:02:56]}  Bd7 {[%clk 0:02:59]} 8. N2b3 {[%clk 0:02:47]}  Nf6 {[%clk 0:02:54]} 9. O-O {[%clk 0:02:47]}  Be7 {[%clk 0:02:53]} 10. Re1 {[%clk 0:02:47]}  O-O {[%clk 0:02:52]} 11. Bg5 {[%clk 0:02:46]}  Re8 {[%clk 0:02:47]} 12. c3 {[%clk 0:02:44]}  h6 {[%clk 0:02:43]} 13. Bh4 {[%clk 0:02:42]}  Qb6 {[%clk 0:02:43]} 14. a4 {[%clk 0:02:09]}  Ne4 {[%clk 0:02:03]} 15. Bxe7 {[%clk 0:02:05]}  Rxe7 {[%clk 0:02:03]} 16. f3 {[%clk 0:02:00]}  Nf6 {[%clk 0:02:02]} 17. Rxe7 {[%clk 0:01:48]}  Nxe7 {[%clk 0:02:01]} 18. Bxd7 {[%clk 0:01:46]}  Nxd7 {[%clk 0:02:02]} 19. a5 {[%clk 0:01:47]}  Qf6 {[%clk 0:01:55]} 20. a6 {[%clk 0:01:46]}  bxa6 {[%clk 0:01:54]} 21. Qe2 {[%clk 0:01:45]}  Ng6 {[%clk 0:01:33]} 22. Rxa6 {[%clk 0:01:44]}  Qg5 {[%clk 0:01:33]} 23. Qd2 {[%clk 0:01:42]}  Qe5 {[%clk 0:01:25]} 24. Nc6 {[%clk 0:01:41]}  Qf5 {[%clk 0:01:21]} 25. Rxa7 {[%clk 0:01:28]}  Re8 {[%clk 0:01:17]} 26. Ra1 {[%clk 0:01:18]}  Nf4 {[%clk 0:01:11]} 27. Ncd4 {[%clk 0:01:17]}  Qg5 {[%clk 0:01:10]} 28. g3 {[%clk 0:01:16]}  Nh3+ {[%clk 0:01:04]} 29. Kg2 {[%clk 0:01:15]}  Qg6 {[%clk 0:01:04]} 30. Kxh3 {[%clk 0:01:12]}  Ne5 {[%clk 0:01:00]} 31. Re1 {[%clk 0:01:09]}  f6 {[%clk 0:00:57]} 32. Kg2 {[%clk 0:01:08]}  Rb8 {[%clk 0:00:56]} 33. Qe2 {[%clk 0:01:04]}  Nd3 {[%clk 0:00:48]} 34. Kf1 {[%clk 0:00:51]}  Nxe1 {[%clk 0:00:46]} 35. Qxe1 {[%clk 0:00:52]}  Re8 {[%clk 0:00:43]} 36. Qd2 {[%clk 0:00:51]}  Rb8 {[%clk 0:00:40]} 37. Kg2 {[%clk 0:00:48]}  Kh8 {[%clk 0:00:40]} 38. Nc5 {[%clk 0:00:46]}  Qb1 {[%clk 0:00:38]} 39. b4 {[%clk 0:00:46]}  Ra8 {[%clk 0:00:38]} 40. Qe3 {[%clk 0:00:13]}  Ra2+ {[%clk 0:00:37]} 41. Kh3 {[%clk 0:00:14]}  Qf1+ {[%clk 0:00:36]} 42. Kg4 {[%clk 0:00:13]}  Rxh2 {[%clk 0:00:29]} 43. Qe8+ {[%clk 0:00:12]}  Kh7 {[%clk 0:00:29]} 44. Nd7 {[%clk 0:00:11]}  h5+ {[%clk 0:00:22]} 45. Kf5 {[%clk 0:00:09]}  Qd3+ {[%clk 0:00:21]} 46. Ke6 {[%clk 0:00:09]}  Qxc3 {[%clk 0:00:13]} 47. Kf7 {[%clk 0:00:05]} 1-0


[Site "https://www.chess.com"]

[Event "Titled Tuesday Blitz March 22 Early 2022"]
[White "Stanisz, Patryk"]
[Black "Tsukerman, Julia"]
[WhiteFideId "1123106"]
[BlackFideId "2621649"]
[WhiteElo "1876"]
[BlackElo "2102"]
[Result "1-0"]
[Round "11"]
[TimeControl "180+1"]
[Date "2022.03.22"]
[WhiteClock "0:01:30"]
[BlackClock "0:00:42"]

1. e4 {[%clk 0:03:00]}  c5 {[%clk 0:02:45]} 2. Nf3 {[%clk 0:02:59]}  d6 {[%clk 0:02:46]} 3. d4 {[%clk 0:02:59]}  cxd4 {[%clk 0:02:46]} 4. Nxd4 {[%clk 0:03:00]}  Nf6 {[%clk 0:02:47]} 5. Nc3 {[%clk 0:03:00]}  a6 {[%clk 0:02:47]} 6. g3 {[%clk 0:02:55]}  e6 {[%clk 0:02:47]} 7. Bg2 {[%clk 0:02:55]}  Be7 {[%clk 0:02:47]} 8. O-O {[%clk 0:02:55]}  O-O {[%clk 0:02:48]} 9. a4 {[%clk 0:02:49]}  Qc7 {[%clk 0:02:48]} 10. Be3 {[%clk 0:02:36]}  Nc6 {[%clk 0:02:43]} 11. Nb3 {[%clk 0:02:34]}  b6 {[%clk 0:02:42]} 12. Qe2 {[%clk 0:02:27]}  Bb7 {[%clk 0:02:24]} 13. Qc4 {[%clk 0:02:20]}  Rac8 {[%clk 0:02:22]} 14. Rad1 {[%clk 0:02:14]}  Rfd8 {[%clk 0:02:01]} 15. h3 {[%clk 0:02:14]}  Nd7 {[%clk 0:01:57]} 16. Kh2 {[%clk 0:02:05]}  Nde5 {[%clk 0:01:54]} 17. Qe2 {[%clk 0:02:05]}  Nd7 {[%clk 0:01:44]} 18. f4 {[%clk 0:02:05]}  Nf6 {[%clk 0:01:43]} 19. Nd2 {[%clk 0:01:57]}  d5 {[%clk 0:01:25]} 20. e5 {[%clk 0:01:54]}  d4 {[%clk 0:01:24]} 21. exf6 {[%clk 0:01:53]}  Bxf6 {[%clk 0:01:24]} 22. Nce4 {[%clk 0:01:48]}  dxe3 {[%clk 0:01:20]} 23. Nxf6+ {[%clk 0:01:49]}  gxf6 {[%clk 0:01:20]} 24. Qxe3 {[%clk 0:01:50]}  Ne7 {[%clk 0:01:17]} 25. Ne4 {[%clk 0:01:45]}  Qxc2 {[%clk 0:01:09]} 26. Rxd8+ {[%clk 0:01:35]}  Rxd8 {[%clk 0:01:05]} 27. Rf2 {[%clk 0:01:35]}  Qc4 {[%clk 0:00:44]} 28. Nxf6+ {[%clk 0:01:34]}  Kg7 {[%clk 0:00:42]} 29. Nh5+ {[%clk 0:01:33]}  Kf8 {[%clk 0:00:42]} 30. Bxb7 {[%clk 0:01:30]} 1-0


[Site "https://www.chess.com"]

[Event "Titled Tuesday Blitz March 22 Early 2022"]
[White "Topalov, Aleksandar"]
[Black "Batsiashvili, Nino"]
[WhiteFideId "925659"]
[BlackFideId "13602993"]
[WhiteElo "2158"]
[BlackElo "2192"]
[Result "1/2-1/2"]
[Round "11"]
[TimeControl "180+1"]
[Date "2022.03.22"]
[WhiteClock "0:02:41"]
[BlackClock "0:02:22"]

1. b3 {[%clk 0:03:00]}  e5 {[%clk 0:02:59]} 2. Bb2 {[%clk 0:03:00]}  d6 {[%clk 0:03:00]} 3. d4 {[%clk 0:02:58]}  exd4 {[%clk 0:03:00]} 4. Qxd4 {[%clk 0:02:57]}  Nf6 {[%clk 0:03:01]} 5. Nc3 {[%clk 0:02:57]}  c5 {[%clk 0:03:01]} 6. Qd2 {[%clk 0:02:55]}  Nc6 {[%clk 0:03:02]} 7. O-O-O {[%clk 0:02:54]}  Be6 {[%clk 0:03:01]} 8. e4 {[%clk 0:02:54]}  a5 {[%clk 0:03:02]} 9. Bb5 {[%clk 0:02:51]}  Be7 {[%clk 0:03:02]} 10. f4 {[%clk 0:02:50]}  O-O {[%clk 0:02:58]} 11. Nf3 {[%clk 0:02:51]}  Bg4 {[%clk 0:02:45]} 12. Bxc6 {[%clk 0:02:45]}  bxc6 {[%clk 0:02:44]} 13. e5 {[%clk 0:02:42]}  dxe5 {[%clk 0:02:31]} 14. Qxd8 {[%clk 0:02:42]}  Rfxd8 {[%clk 0:02:32]} 15. Rxd8+ {[%clk 0:02:41]}  Rxd8 {[%clk 0:02:32]} 16. Nxe5 {[%clk 0:02:41]}  Bf5 {[%clk 0:02:22]} 1/2-1/2


[Site "https://www.chess.com"]

[Event "Titled Tuesday Blitz March 22 Early 2022"]
[White "Tsyhanchuk, Stanislav"]
[Black "Dahlgren, James Allen"]
[WhiteFideId "13505130"]
[BlackFideId "22256873"]
[WhiteElo "2078"]
[BlackElo "2125"]
[Result "1-0"]
[Round "11"]
[TimeControl "180+1"]
[Date "2022.03.22"]
[WhiteClock "0:00:39"]
[BlackClock "0:00:07"]

1. e4 {[%clk 0:03:00]}  e6 {[%clk 0:03:00]} 2. d4 {[%clk 0:03:00]}  c5 {[%clk 0:03:01]} 3. Nf3 {[%clk 0:02:58]}  Nf6 {[%clk 0:03:00]} 4. Nc3 {[%clk 0:02:55]}  cxd4 {[%clk 0:03:00]} 5. Nxd4 {[%clk 0:02:56]}  Nc6 {[%clk 0:03:00]} 6. Be3 {[%clk 0:02:53]}  Bb4 {[%clk 0:02:56]} 7. f3 {[%clk 0:02:51]}  d5 {[%clk 0:02:54]} 8. Nxc6 {[%clk 0:02:48]}  bxc6 {[%clk 0:02:54]} 9. exd5 {[%clk 0:02:28]}  cxd5 {[%clk 0:02:54]} 10. Bb5+ {[%clk 0:02:27]}  Bd7 {[%clk 0:02:53]} 11. Bxd7+ {[%clk 0:02:26]}  Qxd7 {[%clk 0:02:54]} 12. O-O {[%clk 0:02:26]}  O-O {[%clk 0:02:54]} 13. Bd4 {[%clk 0:02:21]}  Rac8 {[%clk 0:02:38]} 14. Kh1 {[%clk 0:02:15]}  Rc4 {[%clk 0:02:30]} 15. a3 {[%clk 0:02:14]}  Bd6 {[%clk 0:02:15]} 16. Qd3 {[%clk 0:02:03]}  e5 {[%clk 0:02:08]} 17. Bf2 {[%clk 0:02:00]}  Qe6 {[%clk 0:01:40]} 18. Rad1 {[%clk 0:01:47]}  d4 {[%clk 0:01:28]} 19. Ne4 {[%clk 0:01:38]}  Nxe4 {[%clk 0:01:02]} 20. fxe4 {[%clk 0:01:39]}  Rfc8 {[%clk 0:00:54]} 21. Rd2 {[%clk 0:01:35]}  Bf8 {[%clk 0:00:35]} 22. Bg3 {[%clk 0:01:29]}  f6 {[%clk 0:00:25]} 23. Rdf2 {[%clk 0:01:27]}  h6 {[%clk 0:00:18]} 24. h3 {[%clk 0:01:20]}  Qc6 {[%clk 0:00:16]} 25. Rc1 {[%clk 0:00:55]}  Kh7 {[%clk 0:00:15]} 26. h4 {[%clk 0:00:47]}  Be7 {[%clk 0:00:14]} 27. h5 {[%clk 0:00:47]}  Qe8 {[%clk 0:00:12]} 28. Qf3 {[%clk 0:00:45]}  Qd7 {[%clk 0:00:08]} 29. c3 {[%clk 0:00:40]}  d3 {[%clk 0:00:07]} 30. Rd1 {[%clk 0:00:39]}  Rd8 {[%clk 0:00:07]} 31. Rfd2 {[%clk 0:00:39]} 1-0


[Site "https://www.chess.com"]

[Event "Titled Tuesday Blitz March 22 Early 2022"]
[White "Vusatiuk, Vladimir"]
[Black "Prohorov, Olexandr"]
[WhiteFideId "14118610"]
[BlackFideId "14105578"]
[WhiteElo "2157"]
[BlackElo "1993"]
[Result "1/2-1/2"]
[Round "11"]
[TimeControl "180+1"]
[Date "2022.03.22"]
[WhiteClock "0:00:38"]
[BlackClock "0:01:18"]

1. a3 {[%clk 0:03:00]}  b5 {[%clk 0:02:54]} 2. e4 {[%clk 0:02:55]}  Bb7 {[%clk 0:02:54]} 3. Nc3 {[%clk 0:02:55]}  a6 {[%clk 0:02:54]} 4. d4 {[%clk 0:02:54]}  Nf6 {[%clk 0:02:47]} 5. Bd3 {[%clk 0:02:47]}  e6 {[%clk 0:02:47]} 6. Nge2 {[%clk 0:02:34]}  c5 {[%clk 0:02:41]} 7. dxc5 {[%clk 0:02:33]}  Bxc5 {[%clk 0:02:41]} 8. b4 {[%clk 0:02:31]}  Be7 {[%clk 0:02:35]} 9. Bb2 {[%clk 0:02:28]}  O-O {[%clk 0:02:33]} 10. O-O {[%clk 0:02:26]}  d6 {[%clk 0:02:09]} 11. f4 {[%clk 0:02:24]}  Nbd7 {[%clk 0:01:54]} 12. Kh1 {[%clk 0:02:06]}  Rc8 {[%clk 0:01:50]} 13. Qe1 {[%clk 0:02:02]}  Nb6 {[%clk 0:01:41]} 14. e5 {[%clk 0:01:23]}  dxe5 {[%clk 0:01:35]} 15. fxe5 {[%clk 0:01:23]}  Ng4 {[%clk 0:01:36]} 16. Qg3 {[%clk 0:01:16]}  Nc4 {[%clk 0:01:33]} 17. Bc1 {[%clk 0:01:11]}  Ngxe5 {[%clk 0:01:22]} 18. Bf4 {[%clk 0:00:38]}  Ng6 {[%clk 0:01:18]} 1/2-1/2


[Site "https://www.chess.com"]